[Event "Live Chess"]
[Site "Chess.com"]
[Date "2023.09.16"]
[Round "-"]
[White "Joasgodoy"]
[Black "CroNmo"]
[Result "0-1"]
[WhiteElo "681"]
[BlackElo "1832"]
[TimeControl "900+5"]
[EndTime "15:54:50 PDT"]
[Termination "CroNmo venceu por desistência"]

1. e4 {[%clk 0:14:54.9]} 1... c5 {[%clk 0:15:00.7]} 2. Nf3 {[%clk 0:14:53.2]}
2... e6 {[%clk 0:15:04.4]} 3. d4 {[%clk 0:14:55]} 3... cxd4 {[%clk 0:15:08.3]}
4. Nxd4 {[%clk 0:14:57.3]} 4... Nf6 {[%clk 0:15:07.8]} 5. Nc3 {[%clk 0:14:59.1]}
5... d6 {[%clk 0:15:03]} 6. Bc4 {[%clk 0:14:49.5]} 6... Be7 {[%clk 0:15:05.9]}
7. Qf3 {[%clk 0:13:24.8]} 7... Nc6 {[%clk 0:15:00.8]} 8. Bb5 {[%clk 0:13:10.6]}
8... Bd7 {[%clk 0:15:03.6]} 9. Qg3 {[%clk 0:12:42]} 9... Nxd4 {[%clk 0:15:01.5]}
10. Bxd7+ {[%clk 0:12:35]} 10... Qxd7 {[%clk 0:15:05.6]} 11. Qxg7 {[%clk
0:12:32.5]} 11... Rg8 {[%clk 0:15:06.4]} 12. Qh6 {[%clk 0:12:20.4]} 12... Nxc2+
{[%clk 0:14:54.1]} 13. Ke2 {[%clk 0:12:17.3]} 13... Nxa1 {[%clk 0:14:59]} 14.
Bg5 {[%clk 0:11:45.7]} 14... Rg6 {[%clk 0:15:01.7]} 15. Qh4 {[%clk 0:11:17.4]}
15... Nc2 {[%clk 0:14:54.2]} 16. e5 {[%clk 0:11:11.3]} 16... dxe5 {[%clk
0:14:46.5]} 17. Rd1 {[%clk 0:11:09.9]} 17... Nd4+ {[%clk 0:14:50.5]} 18. Kf1
{[%clk 0:11:09.6]} 18... Qc6 {[%clk 0:14:46.6]} 19. f3 {[%clk 0:10:55.3]} 19...
Qc4+ {[%clk 0:14:37]} 20. Kg1 {[%clk 0:10:50.7]} 20... Nxf3+ {[%clk 0:14:15.2]}
21. gxf3 {[%clk 0:10:34.8]} 21... Qxh4 {[%clk 0:14:18.3]} 0-1

[Event "Live Chess"]
[Site "Chess.com"]
[Date "2023.09.16"]
[Round "-"]
[White "Mell46"]
[Black "Capi-D-Vara"]
[Result "1-0"]
[WhiteElo "1396"]
[BlackElo "1275"]
[TimeControl "900+5"]
[EndTime "15:55:04 PDT"]
[Termination "Mell46 venceu por desistência"]

1. e4 {[%clk 0:15:02.4]} 1... c5 {[%clk 0:15:01.5]} 2. Nf3 {[%clk 0:15:03.9]}
2... a6 {[%clk 0:15:03.6]} 3. Nc3 {[%clk 0:15:04.3]} 3... g6 {[%clk 0:14:59.9]}
4. Bc4 {[%clk 0:15:07]} 4... Bg7 {[%clk 0:15:00.3]} 5. Ng5 {[%clk 0:14:59.7]}
5... e6 {[%clk 0:14:46]} 6. d3 {[%clk 0:14:49.8]} 6... b5 {[%clk 0:14:24.6]} 7.
Bb3 {[%clk 0:14:52.7]} 7... c4 {[%clk 0:14:25.2]} 8. dxc4 {[%clk 0:14:55.7]}
8... bxc4 {[%clk 0:14:29.3]} 9. Bxc4 {[%clk 0:14:59.3]} 9... Qa5 {[%clk
0:14:25.7]} 10. Bd2 {[%clk 0:13:22.5]} 10... Bb7 {[%clk 0:13:32.9]} 11. Nb5
{[%clk 0:09:57]} 11... Qb6 {[%clk 0:11:44.7]} 12. Be3 {[%clk 0:09:50]} 12... Qc6
{[%clk 0:11:48.3]} 13. Nd6+ {[%clk 0:09:49.1]} 13... Kf8 {[%clk 0:11:46.9]} 14.
Nxb7 {[%clk 0:09:23]} 14... Qxb7 {[%clk 0:11:20.4]} 15. Qd6+ {[%clk 0:09:14.4]}
15... Ne7 {[%clk 0:10:40.2]} 16. Bc5 {[%clk 0:08:50.1]} 16... Bf6 {[%clk
0:10:43.7]} 17. Qf4 {[%clk 0:06:45.3]} 17... Bxg5 {[%clk 0:10:45.9]} 18. Qxg5
{[%clk 0:06:47.4]} 18... Qxe4+ {[%clk 0:10:46.6]} 19. Be2 {[%clk 0:06:49.7]}
19... Nc6 {[%clk 0:10:47.5]} 20. Qf6 {[%clk 0:05:50.2]} 20... Qe5 {[%clk
0:10:48.5]} 21. Bxe7+ {[%clk 0:05:46.1]} 1-0

[Event "Live Chess"]
[Site "Chess.com"]
[Date "2023.09.16"]
[Round "-"]
[White "Luisgustavo100"]
[Black "Gabriel0298"]
[Result "0-1"]
[WhiteElo "947"]
[BlackElo "1602"]
[TimeControl "900+5"]
[EndTime "15:57:08 PDT"]
[Termination "Gabriel0298 venceu por desistência"]

1. e4 {[%clk 0:15:01.9]} 1... e6 {[%clk 0:15:04.9]} 2. Nf3 {[%clk 0:15:03]} 2...
d5 {[%clk 0:15:09.8]} 3. exd5 {[%clk 0:15:03]} 3... exd5 {[%clk 0:15:14.7]} 4.
d4 {[%clk 0:15:07]} 4... Nf6 {[%clk 0:15:19.6]} 5. Nc3 {[%clk 0:15:09.7]} 5...
Bd6 {[%clk 0:15:23.5]} 6. Bd3 {[%clk 0:15:11]} 6... O-O {[%clk 0:15:26.9]} 7.
O-O {[%clk 0:15:14.2]} 7... Bg4 {[%clk 0:15:30.1]} 8. h3 {[%clk 0:15:13.4]} 8...
Bh5 {[%clk 0:15:33.3]} 9. Re1 {[%clk 0:14:44.3]} 9... c6 {[%clk 0:15:32.3]} 10.
Bg5 {[%clk 0:14:19.5]} 10... Nbd7 {[%clk 0:15:35.6]} 11. Bxf6 {[%clk 0:14:07.2]}
11... Qxf6 {[%clk 0:15:38.9]} 12. Be2 {[%clk 0:13:25.4]} 12... Rfe8 {[%clk
0:15:40.7]} 13. Qd2 {[%clk 0:13:21.1]} 13... Re7 {[%clk 0:15:39.7]} 14. Ng5
{[%clk 0:13:05.9]} 14... Bxe2 {[%clk 0:15:41.5]} 15. Rxe2 {[%clk 0:12:58.9]}
15... Rae8 {[%clk 0:15:42.3]} 16. Rae1 {[%clk 0:12:39.2]} 16... Rxe2 {[%clk
0:15:45.9]} 17. Rxe2 {[%clk 0:12:40.3]} 17... Rxe2 {[%clk 0:15:50]} 18. Nxe2
{[%clk 0:12:42.9]} 18... h6 {[%clk 0:15:53]} 19. Nf3 {[%clk 0:12:37.4]} 19...
Nb6 {[%clk 0:15:54.1]} 20. b3 {[%clk 0:12:26.8]} 20... Qe7 {[%clk 0:15:29.6]}
21. Ng3 {[%clk 0:11:46.5]} 21... Bxg3 {[%clk 0:15:26.9]} 22. fxg3 {[%clk
0:11:49]} 22... Nd7 {[%clk 0:15:31.8]} 23. Qe1 {[%clk 0:11:23.3]} 23... Qxe1+
{[%clk 0:15:32.3]} 24. Nxe1 {[%clk 0:11:26.7]} 24... Nf6 {[%clk 0:15:37.2]} 25.
Nf3 {[%clk 0:11:25.7]} 25... Ne4 {[%clk 0:15:41]} 26. g4 {[%clk 0:11:17.2]}
26... Nc3 {[%clk 0:15:44.2]} 27. a4 {[%clk 0:11:14.2]} 27... f6 {[%clk
0:15:44.7]} 28. Kh2 {[%clk 0:11:07.2]} 28... Kf7 {[%clk 0:15:48.8]} 29. Kg3
{[%clk 0:11:11.2]} 29... g5 {[%clk 0:15:52.8]} 30. h4 {[%clk 0:11:01.7]} 30...
Ke6 {[%clk 0:15:56.8]} 31. hxg5 {[%clk 0:11:04.4]} 31... hxg5 {[%clk 0:16:01.7]}
32. Kf2 {[%clk 0:10:51.5]} 32... Na2 {[%clk 0:15:58.4]} 33. Ke3 {[%clk
0:10:24.5]} 33... Nb4 {[%clk 0:16:01.3]} 34. c3 {[%clk 0:10:25.3]} 34... Na2
{[%clk 0:16:04.3]} 35. Kd3 {[%clk 0:10:19.2]} 35... Nc1+ {[%clk 0:15:56.4]} 36.
Kc2 {[%clk 0:10:18.2]} 36... Ne2 {[%clk 0:16:00.1]} 37. Kd2 {[%clk 0:10:06]}
37... Nf4 {[%clk 0:16:02.2]} 38. c4 {[%clk 0:09:41.3]} 38... Nxg2 {[%clk
0:16:02.8]} 39. cxd5+ {[%clk 0:09:38.3]} 39... Kxd5 {[%clk 0:16:07.7]} 40. Kc3
{[%clk 0:09:28.7]} 40... Nf4 {[%clk 0:16:10.4]} 41. Nd2 {[%clk 0:09:24.2]} 41...
Ne2+ {[%clk 0:16:13.1]} 42. Kd3 {[%clk 0:09:25.3]} 42... Nxd4 {[%clk 0:16:17.1]}
43. Nc4 {[%clk 0:09:23.8]} 43... Nxb3 {[%clk 0:16:16.3]} 44. Ke3 {[%clk
0:09:12.1]} 44... Kxc4 {[%clk 0:16:19.2]} 45. Ke4 {[%clk 0:09:14.1]} 45... Nc5+
{[%clk 0:16:05.4]} 46. Kf5 {[%clk 0:09:17.6]} 46... Nd7 {[%clk 0:16:09.5]} 0-1

[Event "Live Chess"]
[Site "Chess.com"]
[Date "2023.09.16"]
[Round "-"]
[White "Yurxx21"]
[Black "CroNmo"]
[Result "0-1"]
[WhiteElo "1489"]
[BlackElo "1834"]
[TimeControl "900+5"]
[EndTime "15:57:21 PDT"]
[Termination "CroNmo venceu por desistência"]

1. e4 {[%clk 0:15:02.3]} 1... c5 {[%clk 0:15:02.4]} 2. Nf3 {[%clk 0:15:06.1]}
2... e6 {[%clk 0:15:05.1]} 3. d4 {[%clk 0:15:10.6]} 3... cxd4 {[%clk 0:15:08.5]}
4. Nxd4 {[%clk 0:15:15.5]} 4... Nf6 {[%clk 0:15:11.2]} 5. Nc3 {[%clk 0:15:18.8]}
5... d6 {[%clk 0:15:15.1]} 6. Bb5+ {[%clk 0:15:20.4]} 6... Bd7 {[%clk
0:15:18.7]} 7. Bxd7+ {[%clk 0:15:22]} 7... Qxd7 {[%clk 0:15:22.7]} 8. O-O {[%clk
0:15:26.6]} 8... Nc6 {[%clk 0:15:23.2]} 9. Be3 {[%clk 0:15:23.6]} 9... Nxd4
{[%clk 0:15:18.9]} 10. Bxd4 {[%clk 0:15:28.5]} 10... e5 {[%clk 0:15:17.3]} 11.
Be3 {[%clk 0:15:23.4]} 11... Be7 {[%clk 0:15:21.5]} 12. Qf3 {[%clk 0:15:20.3]}
12... O-O {[%clk 0:15:14.8]} 13. Qg3 {[%clk 0:15:22.9]} 13... Rfc8 {[%clk
0:15:08.1]} 14. Rfd1 {[%clk 0:15:10.9]} 14... Bf8 {[%clk 0:15:11.3]} 15. Qxe5
{[%clk 0:15:06.7]} 15... dxe5 {[%clk 0:15:12.7]} 16. Rxd7 {[%clk 0:15:07.7]}
16... Nxd7 {[%clk 0:15:17.6]} 0-1

[Event "Live Chess"]
[Site "Chess.com"]
[Date "2023.09.16"]
[Round "-"]
[White "guto-XVI"]
[Black "ViniciusBritoFc"]
[Result "0-1"]
[WhiteElo "1490"]
[BlackElo "1193"]
[TimeControl "900+5"]
[EndTime "15:58:37 PDT"]
[Termination "ViniciusBritoFc venceu por desistência"]

1. Nf3 {[%clk 0:15:03.2]} 1... c5 {[%clk 0:15:03.1]} 2. g3 {[%clk 0:15:05.4]}
2... d5 {[%clk 0:15:06.7]} 3. Bg2 {[%clk 0:15:09.5]} 3... Nc6 {[%clk 0:15:10.3]}
4. O-O {[%clk 0:15:13.2]} 4... Nf6 {[%clk 0:15:14.5]} 5. Re1 {[%clk 0:15:17.4]}
5... g6 {[%clk 0:15:18.3]} 6. d3 {[%clk 0:15:21.9]} 6... Bg7 {[%clk 0:15:22.5]}
7. Nbd2 {[%clk 0:15:25.6]} 7... O-O {[%clk 0:15:27]} 8. b3 {[%clk 0:15:29.7]}
8... Bg4 {[%clk 0:15:30.5]} 9. Bb2 {[%clk 0:15:33.2]} 9... Bxf3 {[%clk 0:15:34]}
10. Bxf3 {[%clk 0:15:36.8]} 10... Qc7 {[%clk 0:15:31.6]} 11. e4 {[%clk
0:15:38.9]} 11... d4 {[%clk 0:15:34.1]} 12. Bg2 {[%clk 0:15:33.5]} 12... Ng4
{[%clk 0:15:33.7]} 13. h3 {[%clk 0:15:29.1]} 13... Nf6 {[%clk 0:15:37.4]} 14. f4
{[%clk 0:15:32.3]} 14... Rfd8 {[%clk 0:15:36.7]} 15. Qf3 {[%clk 0:15:31.9]}
15... e5 {[%clk 0:15:36.1]} 16. f5 {[%clk 0:15:29.5]} 16... g5 {[%clk
0:15:32.1]} 17. Kf2 {[%clk 0:15:09.6]} 17... h5 {[%clk 0:15:15.1]} 18. g4 {[%clk
0:14:53.8]} 18... h4 {[%clk 0:15:10.6]} 19. Nf1 {[%clk 0:14:47.1]} 19... Qa5
{[%clk 0:14:49.3]} 20. Bc1 {[%clk 0:14:42.6]} 20... Nb4 {[%clk 0:14:50.9]} 21.
Qe2 {[%clk 0:14:25.8]} 21... b5 {[%clk 0:14:41]} 22. Nh2 {[%clk 0:14:24.2]}
22... Bh6 {[%clk 0:14:39.2]} 23. Nf3 {[%clk 0:14:27.7]} 23... Re8 {[%clk
0:14:38.2]} 24. Bxg5 {[%clk 0:14:30.5]} 24... Kg7 {[%clk 0:14:41.6]} 25. Bxh6+
{[%clk 0:14:24.1]} 25... Kxh6 {[%clk 0:14:45.4]} 26. Nxh4 {[%clk 0:14:28.2]}
26... Rh8 {[%clk 0:14:31.8]} 27. Nf3 {[%clk 0:14:26.3]} 27... Kg7 {[%clk
0:14:33.9]} 28. Nxe5 {[%clk 0:14:27.1]} 28... Rae8 {[%clk 0:14:27.9]} 29. Nf3
{[%clk 0:14:24.8]} 29... Qc7 {[%clk 0:14:28.9]} 30. Qd2 {[%clk 0:14:23.8]} 30...
Kf8 {[%clk 0:14:16.4]} 31. Nxd4 {[%clk 0:13:51.4]} 31... cxd4 {[%clk 0:13:47.7]}
32. Qxb4+ {[%clk 0:13:53.6]} 32... Kg7 {[%clk 0:13:52.3]} 33. Rac1 {[%clk
0:13:38.8]} 33... Qf4+ {[%clk 0:13:54.9]} 34. Ke2 {[%clk 0:13:15.9]} 34... Nxg4
{[%clk 0:13:35.6]} 35. Rf1 {[%clk 0:11:56.3]} 35... Qe3+ {[%clk 0:13:07.3]} 36.
Kd1 {[%clk 0:11:57.4]} 36... Nf2+ {[%clk 0:13:07.8]} 37. Rxf2 {[%clk 0:12:01.6]}
37... Qxf2 {[%clk 0:13:11.8]} 38. Qd2 {[%clk 0:12:05.6]} 38... Qg1+ {[%clk
0:13:11.9]} 0-1

[Event "Live Chess"]
[Site "Chess.com"]
[Date "2023.09.16"]
[Round "-"]
[White "IMelefante38"]
[Black "Cantalicioo"]
[Result "0-1"]
[WhiteElo "783"]
[BlackElo "1484"]
[TimeControl "900+5"]
[EndTime "15:59:19 PDT"]
[Termination "Cantalicioo venceu por desistência"]

1. e4 {[%clk 0:15:03.4]} 1... c5 {[%clk 0:15:03.4]} 2. Nf3 {[%clk 0:15:03.9]}
2... g6 {[%clk 0:15:07.1]} 3. d4 {[%clk 0:15:07.7]} 3... cxd4 {[%clk 0:15:11.5]}
4. Nxd4 {[%clk 0:15:10.3]} 4... Bg7 {[%clk 0:15:15.2]} 5. c3 {[%clk 0:15:14.7]}
5... Nc6 {[%clk 0:15:18.6]} 6. Bc4 {[%clk 0:15:09.5]} 6... Nf6 {[%clk
0:15:20.3]} 7. O-O {[%clk 0:14:53.9]} 7... O-O {[%clk 0:15:16.2]} 8. h4 {[%clk
0:14:54]} 8... d5 {[%clk 0:15:19]} 9. exd5 {[%clk 0:14:31.8]} 9... Nxd5 {[%clk
0:15:21.6]} 10. Qf3 {[%clk 0:14:09.7]} 10... Nf6 {[%clk 0:15:19.2]} 11. Nd2
{[%clk 0:13:55.4]} 11... Nxd4 {[%clk 0:15:21.4]} 12. cxd4 {[%clk 0:13:56.1]}
12... Qxd4 {[%clk 0:15:22.9]} 13. Bb3 {[%clk 0:13:48]} 13... Bg4 {[%clk
0:15:16.6]} 14. Qg3 {[%clk 0:12:42.4]} 14... h5 {[%clk 0:15:03]} 15. Nf3 {[%clk
0:12:39.4]} 15... Ne4 {[%clk 0:14:54.3]} 16. Qc7 {[%clk 0:11:49.6]} 16... Bxf3
{[%clk 0:14:34.8]} 17. gxf3 {[%clk 0:11:33.8]} 17... Nd6 {[%clk 0:14:25.1]} 18.
Be3 {[%clk 0:10:50]} 18... Qxh4 {[%clk 0:14:13.7]} 19. Bc5 {[%clk 0:07:22.1]}
19... Rac8 {[%clk 0:13:57.7]} 20. Qd7 {[%clk 0:06:55.9]} 20... Rxc5 {[%clk
0:13:54.2]} 21. Rac1 {[%clk 0:07:00.3]} 21... Rg5+ {[%clk 0:13:56.3]} 0-1

[Event "Live Chess"]
[Site "Chess.com"]
[Date "2023.09.16"]
[Round "-"]
[White "Arthur_Maciel"]
[Black "Cocecion"]
[Result "0-1"]
[WhiteElo "1119"]
[BlackElo "1681"]
[TimeControl "900+5"]
[EndTime "15:59:40 PDT"]
[Termination "Cocecion venceu por xeque-mate"]

1. e4 {[%clk 0:15:00.5]} 1... c5 {[%clk 0:15:04.2]} 2. Nf3 {[%clk 0:15:01]} 2...
d6 {[%clk 0:15:08.5]} 3. Bc4 {[%clk 0:15:05.2]} 3... e6 {[%clk 0:15:09.1]} 4.
O-O {[%clk 0:15:07.3]} 4... Nc6 {[%clk 0:15:09.1]} 5. d3 {[%clk 0:15:09.1]} 5...
Qc7 {[%clk 0:15:08.4]} 6. c3 {[%clk 0:15:02.6]} 6... Nf6 {[%clk 0:15:11.2]} 7.
Nbd2 {[%clk 0:15:06.9]} 7... Be7 {[%clk 0:15:14.4]} 8. Re1 {[%clk 0:15:04.2]}
8... a6 {[%clk 0:15:18.6]} 9. Nf1 {[%clk 0:15:08.1]} 9... Na5 {[%clk 0:15:20.3]}
10. Ng3 {[%clk 0:14:50.1]} 10... b5 {[%clk 0:15:23]} 11. Bb3 {[%clk 0:14:49.5]}
11... Nxb3 {[%clk 0:15:25.5]} 12. axb3 {[%clk 0:14:53.4]} 12... Bb7 {[%clk
0:15:29.8]} 13. c4 {[%clk 0:14:50.4]} 13... O-O {[%clk 0:15:31.2]} 14. e5 {[%clk
0:13:19.8]} 14... dxe5 {[%clk 0:15:29.8]} 15. Nxe5 {[%clk 0:13:24]} 15... Bd6
{[%clk 0:15:12.2]} 16. Bf4 {[%clk 0:12:56.7]} 16... Rfd8 {[%clk 0:15:03.1]} 17.
Qd2 {[%clk 0:11:48.8]} 17... Ne8 {[%clk 0:14:14.1]} 18. Rad1 {[%clk 0:09:55]}
18... f6 {[%clk 0:14:16.8]} 19. Qe3 {[%clk 0:08:16.7]} 19... Bxe5 {[%clk
0:14:17.2]} 20. Bxe5 {[%clk 0:08:21.3]} 20... Qxe5 {[%clk 0:14:17.5]} 21. Qxe5
{[%clk 0:08:24.6]} 21... fxe5 {[%clk 0:14:21.7]} 22. Rxe5 {[%clk 0:08:28.9]}
22... Nc7 {[%clk 0:14:21.2]} 23. Rxc5 {[%clk 0:08:23.6]} 23... Ne8 {[%clk
0:13:59.4]} 24. Re1 {[%clk 0:08:16.9]} 24... bxc4 {[%clk 0:13:54.7]} 25. bxc4
{[%clk 0:07:26.4]} 25... Rxd3 {[%clk 0:13:56.5]} 26. Rxe6 {[%clk 0:07:19.3]}
26... Rb3 {[%clk 0:14:00]} 27. Rce5 {[%clk 0:07:08.2]} 27... Nf6 {[%clk
0:14:03.2]} 28. Re7 {[%clk 0:06:27.6]} 28... Rxb2 {[%clk 0:14:05.3]} 29. h3
{[%clk 0:06:22.3]} 29... Rc8 {[%clk 0:14:07.9]} 30. Nf5 {[%clk 0:05:18.3]} 30...
g6 {[%clk 0:13:21.5]} 31. Nh6+ {[%clk 0:04:33.3]} 31... Kh8 {[%clk 0:12:52.7]}
32. Nf7+ {[%clk 0:03:47.2]} 32... Kg8 {[%clk 0:12:54.6]} 33. Nd6 {[%clk
0:02:42.1]} 33... Rb8 {[%clk 0:12:56]} 34. Rf7 {[%clk 0:01:33.4]} 34... Nh5
{[%clk 0:12:42.5]} 35. Rfe7 {[%clk 0:01:03.9]} 35... Rb1+ {[%clk 0:12:34.7]} 36.
Kh2 {[%clk 0:01:06.8]} 36... Bc6 {[%clk 0:12:34.3]} 37. Rc7 {[%clk 0:00:44.2]}
37... Ba4 {[%clk 0:12:05.2]} 38. Ree7 {[%clk 0:00:35.4]} 38... Rf8 {[%clk
0:11:53.7]} 39. Rxh7 {[%clk 0:00:33.8]} 39... Rxf2 {[%clk 0:11:57.1]} 40. Rh6
{[%clk 0:00:25]} 40... Nf4 {[%clk 0:11:53]} 41. Kg3 {[%clk 0:00:22.2]} 41...
Rbb2 {[%clk 0:11:38.6]} 42. Rc8+ {[%clk 0:00:21.7]} 42... Kg7 {[%clk 0:11:41.2]}
43. Rhh8 {[%clk 0:00:24]} 43... Nh5+ {[%clk 0:11:45.3]} 44. Kh4 {[%clk
0:00:26.3]} 44... Rf4+ {[%clk 0:11:40.5]} 45. Kg5 {[%clk 0:00:30.4]} 45... Rxg2#
{[%clk 0:11:44.2]} 0-1

[Event "Live Chess"]
[Site "Chess.com"]
[Date "2023.09.16"]
[Round "-"]
[White "Sophowl"]
[Black "Tercette"]
[Result "1/2-1/2"]
[WhiteElo "256"]
[BlackElo "166"]
[TimeControl "900+5"]
[EndTime "16:00:56 PDT"]
[Termination "Partida empatada por acordo"]

1. d4 {[%clk 0:15:00.4]} 1... e6 {[%clk 0:15:02.1]} 2. e4 {[%clk 0:14:58.2]}
2... d5 {[%clk 0:15:04]} 3. f3 {[%clk 0:14:57]} 3... Bb4+ {[%clk 0:15:02.4]} 4.
Bd2 {[%clk 0:14:52.6]} 4... a5 {[%clk 0:15:01.3]} 5. c3 {[%clk 0:14:50.9]} 5...
Nf6 {[%clk 0:15:01.1]} 6. cxb4 {[%clk 0:14:50.9]} 6... axb4 {[%clk 0:15:04.1]}
7. Bxb4 {[%clk 0:14:52.9]} 7... c5 {[%clk 0:14:58]} 8. Bxc5 {[%clk 0:14:50.4]}
8... b6 {[%clk 0:15:00]} 9. Qa4+ {[%clk 0:14:46]} 9... Bd7 {[%clk 0:14:55.5]}
10. Qxa8 {[%clk 0:14:48.1]} 10... bxc5 {[%clk 0:14:58.6]} 11. dxc5 {[%clk
0:14:49.7]} 11... Nc6 {[%clk 0:14:55.1]} 12. Qb7 {[%clk 0:14:32.8]} 12... Bc8
{[%clk 0:14:56.3]} 13. Qxc6+ {[%clk 0:14:27.8]} 13... Qd7 {[%clk 0:14:59]} 14.
Qa8 {[%clk 0:14:14.1]} 14... Nh5 {[%clk 0:14:55.8]} 15. c6 {[%clk 0:14:12.8]}
15... Qd8 {[%clk 0:14:56.8]} 16. Nc3 {[%clk 0:14:07.9]} 16... Nf4 {[%clk
0:15:00.3]} 17. exd5 {[%clk 0:14:08.7]} 17... Nd3+ {[%clk 0:15:03.1]} 18. Bxd3
{[%clk 0:14:10.3]} 18... exd5 {[%clk 0:15:02.8]} 19. c7 {[%clk 0:14:08.6]} 19...
Qxc7 {[%clk 0:15:04.5]} 20. Nxd5 {[%clk 0:14:11.9]} 20... Qd8 {[%clk 0:15:06.3]}
21. Qc6+ {[%clk 0:14:07.6]} 21... Bd7 {[%clk 0:15:07.9]} 22. Qc5 {[%clk
0:13:56.9]} 22... Rf8 {[%clk 0:14:52.8]} 23. Bxh7 {[%clk 0:13:48.6]} 23... Rh8
{[%clk 0:14:54.1]} 24. Be4 {[%clk 0:13:48]} 24... Rh5 {[%clk 0:14:54.3]} 25. Nf4
{[%clk 0:13:41.2]} 25... Rxc5 {[%clk 0:14:56.1]} 26. Nd3 {[%clk 0:13:30.1]}
26... Rc8 {[%clk 0:14:55]} 27. Rc1 {[%clk 0:13:22.1]} 27... Rxc1+ {[%clk
0:14:57.3]} 28. Nxc1 {[%clk 0:13:24.5]} 28... Qa5+ {[%clk 0:14:57]} 29. Kf2
{[%clk 0:13:21.8]} 29... Qd2+ {[%clk 0:14:56.6]} 30. Kg3 {[%clk 0:13:18.4]}
30... Qxc1 {[%clk 0:15:00]} 31. Ne2 {[%clk 0:13:18.9]} 31... Qxb2 {[%clk
0:15:02.9]} 32. Re1 {[%clk 0:13:05.5]} 32... Qxa2 {[%clk 0:15:05.7]} 33. Bd5
{[%clk 0:12:54.7]} 33... Qd2 {[%clk 0:15:08.8]} 34. Kf2 {[%clk 0:12:44]} 34...
Qxd5 {[%clk 0:15:11.2]} 35. Nf4+ {[%clk 0:12:44.3]} 35... Be6 {[%clk 0:15:09.1]}
36. Nxd5 {[%clk 0:12:44.1]} 36... f5 {[%clk 0:15:08]} 37. Nc7+ {[%clk
0:12:46.9]} 37... Kd7 {[%clk 0:15:10.7]} 38. Rd1+ {[%clk 0:12:50.2]} 38... Kxc7
{[%clk 0:15:14.4]} 39. h4 {[%clk 0:12:48.7]} 39... Bb3 {[%clk 0:15:13.3]} 40.
Rc1+ {[%clk 0:12:50.2]} 40... Kb6 {[%clk 0:15:13.3]} 41. g4 {[%clk 0:12:53.6]}
41... fxg4 {[%clk 0:15:16.2]} 42. fxg4 {[%clk 0:12:56]} 42... g5 {[%clk
0:15:18.1]} 43. hxg5 {[%clk 0:12:58]} 43... Kb5 {[%clk 0:15:19.8]} 44. Rb1
{[%clk 0:13:01]} 44... Kb4 {[%clk 0:15:23.4]} 45. g6 {[%clk 0:13:00.7]} 45...
Kc4 {[%clk 0:15:25.7]} 46. Rc1+ {[%clk 0:13:00.6]} 46... Kb4 {[%clk 0:15:29.1]}
47. Rc8 {[%clk 0:12:57.1]} 47... Be6 {[%clk 0:15:30.3]} 48. Rc6 {[%clk 0:12:57]}
48... Bd5 {[%clk 0:15:31.5]} 49. Rb6+ {[%clk 0:12:55.5]} 49... Kc5 {[%clk
0:15:34]} 50. Rb8 {[%clk 0:12:56.6]} 50... Kc6 {[%clk 0:15:36.3]} 51. g7 {[%clk
0:12:59.5]} 51... Kc7 {[%clk 0:15:39.4]} 52. Rh8 {[%clk 0:12:55.5]} 52... Kd7
{[%clk 0:15:41.6]} 53. g5 {[%clk 0:12:55.7]} 53... Ke7 {[%clk 0:15:44.8]} 54.
g8=Q {[%clk 0:12:51.6]} 54... Bxg8 {[%clk 0:15:47]} 55. Rxg8 {[%clk 0:12:55.3]}
55... Kf7 {[%clk 0:15:50.5]} 56. Ra8 {[%clk 0:12:56.3]} 56... Kg6 {[%clk
0:15:54]} 57. Rg8+ {[%clk 0:12:58.3]} 57... Kh7 {[%clk 0:15:57.6]} 58. Rb8
{[%clk 0:12:56.8]} 58... Kg6 {[%clk 0:16:01.2]} 59. Rb6+ {[%clk 0:12:59.7]}
59... Kxg5 {[%clk 0:16:05]} 60. Rb5+ {[%clk 0:13:02.2]} 60... Kf4 {[%clk
0:16:07.9]} 61. Rb4+ {[%clk 0:13:05]} 61... Ke5 {[%clk 0:16:10.7]} 62. Rb5+
{[%clk 0:13:08.2]} 62... Kd4 {[%clk 0:16:14.6]} 63. Rb8 {[%clk 0:13:10.6]} 63...
Kc5 {[%clk 0:16:18.3]} 64. Rc8+ {[%clk 0:13:14.1]} 64... Kb6 {[%clk 0:16:22.1]}
65. Rc1 {[%clk 0:13:14.9]} 65... Kb5 {[%clk 0:16:25.7]} 66. Rb1+ {[%clk
0:13:18.8]} 66... Kc4 {[%clk 0:16:29.5]} 67. Rc1+ {[%clk 0:13:21.7]} 67... Kb3
{[%clk 0:16:33.6]} 68. Re1 {[%clk 0:13:22.5]} 68... Kc2 {[%clk 0:16:37]} 69.
Re2+ {[%clk 0:13:25.5]} 69... Kd3 {[%clk 0:16:40.4]} 70. Re6 {[%clk 0:13:27.3]}
70... Kd4 {[%clk 0:16:44]} 71. Rd6+ {[%clk 0:13:31.6]} 71... Ke5 {[%clk
0:16:47.4]} 72. Rd8 {[%clk 0:13:34.5]} 72... Ke6 {[%clk 0:16:51]} 73. Kf3 {[%clk
0:13:38.4]} 73... Ke7 {[%clk 0:16:54]} 74. Rb8 {[%clk 0:13:41.7]} 74... Kd6
{[%clk 0:16:57.8]} 75. Kf4 {[%clk 0:13:44.5]} 75... Kc7 {[%clk 0:17:01.7]} 76.
Rh8 {[%clk 0:13:46.6]} 76... Kd6 {[%clk 0:17:05.4]} 77. Rh6+ {[%clk 0:13:49.9]}
77... Kd5 {[%clk 0:17:09.1]} 78. Kf5 {[%clk 0:13:54.1]} 78... Kd4 {[%clk
0:17:12.6]} 79. Kf6 {[%clk 0:13:58.4]} 79... Ke3 {[%clk 0:17:16.4]} 80. Kf7
{[%clk 0:13:57.9]} 1/2-1/2

[Event "Live Chess"]
[Site "Chess.com"]
[Date "2023.09.16"]
[Round "-"]
[White "MNPedroh"]
[Black "GustavoFarinha"]
[Result "1-0"]
[WhiteElo "1859"]
[BlackElo "1692"]
[TimeControl "900+5"]
[EndTime "16:01:04 PDT"]
[Termination "MNPedroh venceu por desistência"]

1. e4 {[%clk 0:15:04.3]} 1... c5 {[%clk 0:15:03.9]} 2. Nf3 {[%clk 0:15:08.8]}
2... d6 {[%clk 0:15:08.1]} 3. c3 {[%clk 0:15:13.5]} 3... Nf6 {[%clk 0:15:11.3]}
4. Be2 {[%clk 0:15:18.1]} 4... a6 {[%clk 0:15:15.6]} 5. O-O {[%clk 0:15:18.5]}
5... e6 {[%clk 0:15:12.4]} 6. Re1 {[%clk 0:15:13.7]} 6... Be7 {[%clk 0:15:15.5]}
7. d3 {[%clk 0:15:13.4]} 7... Nbd7 {[%clk 0:15:15.7]} 8. h3 {[%clk 0:15:17.6]}
8... Qc7 {[%clk 0:15:19.2]} 9. Be3 {[%clk 0:15:22.2]} 9... b5 {[%clk 0:15:22.4]}
10. Nbd2 {[%clk 0:15:21.4]} 10... Bb7 {[%clk 0:15:26.8]} 11. Rc1 {[%clk
0:15:23.6]} 11... O-O-O {[%clk 0:15:29.8]} 12. b4 {[%clk 0:15:07.8]} 12... Kb8
{[%clk 0:15:27.6]} 13. a4 {[%clk 0:15:09.1]} 13... Rc8 {[%clk 0:15:12.6]} 14.
axb5 {[%clk 0:15:06.1]} 14... axb5 {[%clk 0:15:15.9]} 15. Qb3 {[%clk 0:14:52.9]}
15... d5 {[%clk 0:14:14.1]} 16. Ra1 {[%clk 0:13:01.4]} 16... c4 {[%clk
0:13:21.4]} 17. Ba7+ {[%clk 0:13:01.6]} 1-0